fUST/lending_fUST_20240320
["ID","MTS","AMOUNT","RATE_DAILY","PERIOD"]
[319712239,1710937847089,-500.0,0.00031847,2]
[319712240,1710937847098,-500.0,0.00031847,2]
[319712241,1710937847107,-500.0,0.00031847,2]
[319712242,1710937847116,-500.0,0.00031847,2]
[319712243,1710937847125,-500.0,0.00031847,2]
[319712244,1710937847134,-500.0,0.00031847,2]
[319712245,1710937847143,-576.9,0.00031847,2]
[319712246,1710937847152,-4168.7,0.00031847,2]
[319712247,1710937847161,-500.0,0.00031847,2]
[319712248,1710937847171,-500.0,0.00031847,2]
[319712249,1710937847180,-500.0,0.00031847,2]
[319712250,1710937847189,-500.0,0.00031847,2]
[319712251,1710937847198,-500.0,0.00031847,2]
[319712252,1710937847208,-500.0,0.00031847,2]
[319712253,1710937847217,-500.0,0.00031847,2]
[319712254,1710937847226,-500.0,0.00031847,2]
[319712255,1710937847234,-2965.11,0.00031847,2]
[319712256,1710937847244,-665.16,0.00031847,2]
[319712257,1710937847253,-779.2,0.00031847,2]
[319712258,1710937847262,-500.0,0.00031847,2]
[319712259,1710937847271,-4166.66,0.00031847,2]
[319712260,1710937847281,-500.0,0.00031847,2]
[319712261,1710937847290,-500.0,0.00031847,2]
[319712262,1710937847302,-500.0,0.00031852,2]
[319712263,1710937847312,-500.0,0.00031852,2]
[319712264,1710937847321,-500.0,0.00031852,2]
[319712265,1710937847330,-500.0,0.00031852,2]
[319712266,1710937847339,-500.0,0.00031852,2]
[319712267,1710937847348,-2371.34,0.00031852,2]
[319712268,1710937847357,-500.0,0.00031852,2]
[319712269,1710937847366,-755.01,0.00031852,2]
[319712270,1710937847375,-500.0,0.00031852,2]
[319712271,1710937847385,-500.0,0.00031852,2]
[319712272,1710937847394,-443.73148624,0.00031852,2]
[319712273,1710937847403,-382.37617292,0.00031852,2]
[319712274,1710937847412,-501.37155102,0.00031852,2]
[319712275,1710937847421,-499.56398122,0.00031852,2]
[319712276,1710937847431,-500.0,0.00031852,2]
[319712277,1710937847440,-500.0,0.00031852,2]
[319712278,1710937847450,-503.18532771,0.00031852,2]
[319712279,1710937847459,-500.0,0.00031852,2]
[319712280,1710937847468,-501.68716127,0.00031852,2]
[319712281,1710937847477,-500.0,0.00031852,2]
[319712282,1710937847486,-500.0,0.00031852,2]
[319712283,1710937847495,-510.19,0.00031852,2]
[319712284,1710937847504,-500.0,0.00031852,2]
[319712285,1710937847514,-500.0,0.00031852,2]
[319712286,1710937847522,-500.0,0.00031852,2]
[319712287,1710937847531,-483.54115918,0.00031852,2]
[319712288,1710937847541,-500.69308785,0.00031852,2]
[319712289,1710937847553,-500.0,0.00031852,2]
[319712290,1710937847563,-504.73917254,0.00031852,2]
[319712291,1710937847572,-500.0,0.00031852,2]
[319712292,1710937847582,-236.52758793,0.00031852,2]
[319712293,1710937847593,-500.0,0.00031852,2]
[319712294,1710937847602,-500.0,0.00031852,2]
[319712295,1710937847612,-500.0,0.00031852,2]
[319712296,1710937847621,-500.0,0.00031852,2]
[319712297,1710937847631,-500.0,0.00031852,2]
[319712298,1710937847641,-500.87040471,0.00031852,2]
[319712299,1710937847650,-500.0,0.00031852,2]
[319712300,1710937847659,-500.0,0.00031852,2]
[319712301,1710937847667,-500.0,0.00031852,2]
[319712302,1710937847677,-586.39,0.00031852,2]
[319712303,1710937847686,-500.0,0.00031852,2]
[319712304,1710937847695,-500.0,0.00031852,2]
[319712305,1710937847704,-500.0,0.00031852,2]
[319712306,1710937847713,-322.46004581,0.00031852,2]
[319712307,1710937847722,-502.64008218,0.00031852,2]
[319712308,1710937847731,-500.0,0.00031852,2]
[319712309,1710937847740,-500.0,0.00031852,2]
[319712310,1710937847750,-500.0,0.00031852,2]
[319712311,1710937847760,-500.0,0.00031852,2]
[319712312,1710937847770,-569.01,0.00031852,2]
[319712314,1710937847844,-501.1192887,0.00031852,2]
[319712315,1710937847860,-500.0,0.00031852,2]
[319712316,1710937847870,-500.0,0.00031852,2]
[319712317,1710937847882,-540.34242183,0.00031852,2]
[319712318,1710937847892,-1366.38,0.00031852,2]
[319712319,1710937847902,-639.67,0.00031852,2]
[319712320,1710937847911,-203.86620209,0.00031852,2]
[319712321,1710937847920,-500.0,0.00031852,2]
[319712322,1710937847932,-500.0,0.00031852,2]
[319712323,1710937847943,-500.0,0.00031852,2]
[319712324,1710937847952,-500.0,0.00031852,2]
[319712325,1710937847961,-502.84990671,0.00031852,2]
[319712326,1710937847970,-500.0,0.00031852,2]
[319712327,1710937847982,-500.0,0.00031852,2]
[319712328,1710937847992,-932.48,0.00031852,2]
[319712329,1710937848001,-596.63385831,0.00031852,2]
[319712330,1710937848011,-770.91,0.00031852,2]
[319712331,1710937848020,-500.0,0.00031852,2]
[319712332,1710937848030,-260.28405881,0.00031852,2]
[319712333,1710937848040,-500.78919011,0.00031852,2]
[319712334,1710937848053,-512.78817253,0.00031852,2]
[319712335,1710937848062,-500.0,0.00031852,5]
[319712336,1710937848072,-500.0,0.00031852,2]
[319712337,1710937848081,-500.61836398,0.00031852,2]
[319712338,1710937848091,-500.0,0.00031852,2]
[319712339,1710937848100,-500.0,0.00031852,2]
[319712340,1710937848109,-466.58328449,0.00031852,2]
[319712341,1710937848119,-1000.17,0.00031852,2]
[319712342,1710937848130,-500.0,0.00031852,2]
[319712343,1710937848140,-500.0,0.00031852,2]
[319712344,1710937848149,-500.0,0.00031852,2]
[319712345,1710937848158,-646.17,0.00031852,2]
[319712346,1710937848168,-500.0,0.00031852,2]
[319712347,1710937848178,-500.0,0.00031852,2]
[319712348,1710937848187,-500.0,0.00031852,2]
[319712349,1710937848197,-500.0,0.00031852,2]
[319712350,1710937848206,-806.28,0.00031852,2]
[319712351,1710937848216,-500.0,0.00031852,2]
[319712352,1710937848225,-500.0,0.00031852,2]
[319712353,1710937848235,-315.61081551,0.00031852,2]
[319712354,1710937848244,-500.0,0.00031852,2]
[319712355,1710937848254,-500.0,0.00031852,2]
[319712356,1710937848263,-553.88,0.00031852,2]
[319712357,1710937848273,-500.0,0.00031852,2]
[319712358,1710937848282,-210.87976388,0.00031946,4]
[319712359,1710937848292,-500.0,0.00031953,2]
[319712360,1710937848304,-156.74183684,0.00031955,4]
[319712361,1710937848314,-884.55589822,0.00031955,4]
[319712362,1710937848323,-309.94117663,0.00031957,2]
[319712363,1710937848332,-314.93472992,0.00031957,4]
[319712364,1710937848342,-466.33078241,0.00031957,4]
[319712365,1710937848351,-270.16270806,0.00031957,4]
[319712366,1710937848361,-3010.91871845,0.00032,2]
[319712367,1710937848370,-500.0,0.00032015,2]
[319712368,1710937848387,-500.0,0.00032015,2]
[319712369,1710937848406,-558.06,0.00032016,2]
[319712370,1710937848421,-500.0,0.00032016,2]
[319712371,1710937848439,-3314.0,0.00032016,2]
[319712372,1710937848458,-3141.67,0.00032016,2]
[319712373,1710937848474,-984.85,0.00032016,2]
[319712374,1710937848491,-500.0,0.00032016,2]
[319712375,1710937848508,-39210.67,0.00032016,2]
[319712376,1710937848523,-2501.83,0.00032016,2]
[319712377,1710937848540,-500.0,0.00032017,2]
[319712378,1710937848557,-1377.80821392,0.00032066,4]
[319712379,1710937848575,-155.58515353,0.00032083,2]
[319712380,1710937848592,-3757.41,0.00032115,2]
[319712381,1710937848608,-500.0,0.00032115,2]
[319712382,1710937848620,-2245.36,0.00032115,2]
[319712383,1710937848636,-1980.19,0.00032115,2]
[319712384,1710937848651,-3202.49,0.00032115,2]
[319712385,1710937848664,-12350.32,0.00032115,2]
[319712386,1710937848678,-1724.39,0.00032115,2]
[319712387,1710937848692,-565.02,0.00032115,2]
[319712388,1710937848706,-500.0,0.00032115,2]
[319712389,1710937848720,-5209.66,0.00032115,2]
[319712390,1710937848734,-500.0,0.00032115,2]
[319712391,1710937848748,-2061.43,0.00032115,2]
[319712392,1710937848762,-500.0,0.00032115,2]
[319712393,1710937848776,-500.0,0.00032115,2]
[319712394,1710937848789,-500.0,0.00032115,2]
[319712395,1710937848804,-500.0,0.00032115,2]
[319712396,1710937848818,-896.93,0.00032115,2]
[319712397,1710937848832,-500.0,0.00032115,2]
[319712398,1710937848847,-500.0,0.00032115,2]
[319712399,1710937848861,-34704.47,0.00032115,2]
[319712400,1710937848875,-6885.87,0.00032115,2]
[319712401,1710937848890,-500.0,0.00032115,2]
[319712402,1710937848905,-500.0,0.00032117,2]
[319712403,1710937848919,-500.0,0.00032117,2]
[319712404,1710937848935,-500.0,0.00032117,2]
[319712405,1710937848950,-506.96,0.00032117,2]
[319712406,1710937848965,-500.0,0.00032117,2]
[319712407,1710937848980,-665.5,0.00032117,2]
[319712408,1710937848995,-557.59,0.00032117,2]
[319712409,1710937849009,-604.45,0.00032117,2]
[319712410,1710937849024,-438.57940187,0.00032117,2]
[319712411,1710937849039,-826.7,0.00032117,2]
[319712412,1710937849056,-271.61379689,0.00032117,2]
[319712413,1710937849071,-500.0,0.00032117,2]
[319712414,1710937849087,-979.6,0.00032117,2]
[319712415,1710937849102,-500.0,0.00032117,2]
[319712416,1710937849116,-500.0,0.00032117,2]
[319712417,1710937849130,-502.49925433,0.00032117,2]
[319712418,1710937849143,-1437.52,0.00032117,2]
[319712419,1710937849153,-611.05,0.00032117,2]
[319712420,1710937849163,-500.0,0.00032117,2]
[319712421,1710937849174,-500.0,0.00032117,2]
[319712422,1710937849184,-8325.38,0.00032117,2]
[319712423,1710937849323,-2778.2,0.00032117,2]
[319712424,1710937849333,-500.0,0.00032117,2]
[319712425,1710937849343,-1111.42,0.00032117,2]
[319712426,1710937849353,-500.0,0.00032117,2]
[319712427,1710937849362,-490.6986061,0.00032117,2]
[319712428,1710937849372,-500.0,0.00032117,2]
[319712429,1710937849381,-1155.02,0.00032117,2]
[319712430,1710937849392,-500.0,0.00032117,2]
[319712431,1710937849401,-498.6050504,0.00032117,2]
[319712432,1710937849411,-3076.45,0.00032117,2]
[319712433,1710937849421,-5048.6,0.00032117,2]
[319712434,1710937849431,-500.0,0.00032117,2]
[319712435,1710937849440,-1109.31,0.00032117,2]
[319712436,1710937849450,-500.0,0.00032117,2]
[319712437,1710937849460,-500.0,0.00032117,2]
[319712438,1710937849470,-500.0,0.00032117,2]
[319712439,1710937849480,-599.74,0.00032117,2]
[319712440,1710937849489,-2843.79,0.00032117,2]
[319712441,1710937849498,-500.0,0.00032117,2]
[319712442,1710937849508,-502.42850805,0.00032117,2]
[319712443,1710937849517,-3034.83,0.00032117,2]
[319712444,1710937849527,-500.0,0.00032117,2]
[319712445,1710937849537,-500.0,0.00032117,2]
[319712446,1710937849551,-500.0,0.00032117,2]
[319712447,1710937849562,-1511.8,0.00032117,2]
[319712448,1710937849571,-1254.46,0.00032117,2]
[319712449,1710937849581,-500.0,0.00032117,2]
[319712450,1710937849591,-451.01,0.00032117,2]
[319712451,1710937849600,-500.0,0.00032117,2]
[319712452,1710937849609,-4334.6,0.00032117,2]
[319712453,1710937849618,-500.0,0.00032117,2]
[319712454,1710937849628,-799.65,0.00032117,2]
[319712455,1710937849638,-500.0,0.00032117,2]
[319712456,1710937849647,-46894.07,0.00032118,2]
[319712457,1710937849655,-500.0,0.00032118,2]
[319712458,1710937849663,-500.0,0.00032119,2]
[319712459,1710937849672,-500.0,0.00032119,2]
[319712460,1710937849681,-500.0,0.00032119,2]
[319712461,1710937849690,-500.0,0.00032119,2]
[319712462,1710937849700,-500.0,0.00032119,2]
[319712463,1710937849709,-500.0,0.00032119,2]
[319712464,1710937849718,-501.83,0.00032119,2]
[319712465,1710937849727,-500.0,0.00032119,2]
[319712466,1710937849738,-500.0,0.00032119,2]
[319712467,1710937849747,-500.0,0.00032119,2]
[319712468,1710937849757,-500.0,0.00032119,2]
[319712469,1710937849767,-210.24610826,0.00032119,2]
[319712470,1710937849777,-500.0,0.00032119,2]
[319712471,1710937849787,-500.0,0.00032119,2]
[319712472,1710937849797,-500.0,0.00032119,2]
[319712473,1710937849808,-500.0,0.00032119,2]
[319712474,1710937849817,-500.0,0.00032119,2]
[319712475,1710937849827,-500.0,0.00032119,2]
[319712476,1710937849836,-500.0,0.00032119,2]
[319712477,1710937849846,-500.0,0.00032119,2]
[319712478,1710937849855,-500.0,0.00032119,2]
[319712479,1710937849864,-500.0,0.00032119,2]
[319712480,1710937849873,-500.0,0.00032119,2]
[319712481,1710937849882,-455.16566895,0.00032119,2]
[319712482,1710937849892,-500.0,0.00032119,2]
[319712483,1710937849901,-500.0,0.00032119,2]
[319712484,1710937849910,-192.26439724,0.00032119,2]
[319712485,1710937849920,-608.96,0.00032119,2]
[319712486,1710937849933,-611.03,0.00032119,2]
[319712487,1710937849942,-500.0,0.00032119,2]
[319712488,1710937849952,-500.0,0.00032119,2]
[319712489,1710937849966,-500.0,0.00032119,2]
[319712490,1710937849977,-500.0,0.00032119,2]
[319712491,1710937849986,-1541.93,0.00032119,2]
[319712492,1710937849995,-500.0,0.00032119,2]
[319712493,1710937850005,-702.93,0.00032119,2]
[319712494,1710937850014,-500.0,0.00032119,2]
[319712495,1710937850024,-500.0,0.00032119,2]
[319712496,1710937850033,-273.97076677,0.00032119,2]
[319712497,1710937850043,-151.0,0.00032119,2]
[319712498,1710937850054,-500.0,0.00032119,2]
[319712499,1710937850064,-571.60678716,0.00032119,2]
[319712500,1710937850073,-1138.09,0.00032119,2]
[319712501,1710937850083,-500.0,0.00032119,2]
[319712502,1710937850092,-601.27,0.00032119,2]
[319712503,1710937850102,-500.0,0.00032119,2]
[319712504,1710937850111,-500.0,0.00032119,2]
[319712505,1710937850120,-596.87,0.00032119,2]
[319712506,1710937850129,-500.0,0.00032119,2]
[319712507,1710937850138,-500.0,0.00032119,2]
[319712508,1710937850147,-377.76915691,0.00032119,2]
[319712509,1710937850156,-500.0,0.00032119,2]
[319712510,1710937850166,-500.0,0.00032119,2]
[319712511,1710937850175,-500.0,0.00032119,2]
[319712512,1710937850183,-500.0,0.00032119,2]
[319712513,1710937850193,-500.0,0.00032119,2]
[319712514,1710937850202,-1109.19,0.00032119,2]
[319712515,1710937850211,-218.25187856,0.00032119,2]
[319712516,1710937850221,-533.07,0.00032119,2]
[319712517,1710937850230,-500.0,0.00032119,2]
[319712518,1710937850239,-500.0,0.00032119,2]
[319712519,1710937850249,-500.0,0.00032119,2]
[319712520,1710937850259,-728.69,0.00032119,2]
[319712521,1710937850269,-500.0,0.00032119,2]
[319712522,1710937850278,-500.0,0.00032119,2]
[319712523,1710937850288,-500.0,0.00032119,2]
[319712524,1710937850297,-1223.03,0.00032119,2]
[319712525,1710937850309,-500.0,0.00032119,2]
[319712526,1710937850319,-500.0,0.00032119,2]
[319712527,1710937850329,-586.0241612,0.00032119,2]
[319712528,1710937850338,-500.0,0.00032119,2]
[319712529,1710937850348,-1075.76,0.00032119,2]
[319712530,1710937850357,-500.0,0.00032119,2]
[319712531,1710937850368,-500.0,0.00032119,2]
[319712532,1710937850377,-500.0,0.00032119,2]
[319712533,1710937850386,-165.58801142,0.00032119,2]
[319712534,1710937850396,-500.0,0.00032119,2]
[319712535,1710937850405,-500.0,0.00032119,2]
[319712536,1710937850415,-680.42,0.00032119,2]
[319712537,1710937850425,-500.0,0.00032119,2]
[319712538,1710937850434,-500.0,0.00032119,2]
[319712539,1710937850444,-500.0,0.00032119,2]
[319712540,1710937850453,-500.0,0.00032119,2]
[319712541,1710937850462,-500.0,0.00032119,2]
[319712542,1710937850472,-500.0,0.00032119,2]
[319712543,1710937850481,-500.0,0.00032119,2]
[319712544,1710937850491,-500.0,0.00032119,2]
[319712545,1710937850500,-500.0,0.00032119,2]
[319712546,1710937850509,-500.0,0.00032121,2]
[319712547,1710937850518,-557.21978737,0.00032121,2]
[319712548,1710937850527,-500.0,0.00032121,2]
[319712549,1710937850537,-500.0,0.00032121,2]
[319712550,1710937850546,-217.29957022,0.00032121,2]
[319712551,1710937850557,-501.89145891,0.00032121,2]
[319712552,1710937850566,-500.0,0.00032121,2]
[319712553,1710937850576,-500.0,0.00032121,2]
[319712554,1710937850585,-576.9,0.00032121,2]
[319712555,1710937850594,-4168.7,0.00032121,2]
[319712556,1710937850604,-500.0,0.00032121,2]
[319712557,1710937850613,-500.0,0.00032121,2]
[319712558,1710937850623,-500.0,0.00032121,2]
[319712559,1710937850632,-500.0,0.00032121,2]
[319712560,1710937850641,-500.0,0.00032121,2]
[319712561,1710937850651,-500.0,0.00032121,2]
[319712562,1710937850660,-500.0,0.00032121,2]
[319712563,1710937850669,-500.0,0.00032121,2]
[319712564,1710937850679,-2965.11,0.00032121,2]
[319712565,1710937850688,-665.16,0.00032121,2]
[319712566,1710937850697,-779.2,0.00032121,2]
[319712567,1710937850707,-265.88553291,0.00032121,2]
[319712568,1710937850717,-4166.66,0.00032121,2]
[319712569,1710937850727,-412.43383956,0.00032121,2]
[319712570,1710937850737,-500.0,0.00032121,2]
[319712571,1710937850746,-500.0,0.00032126,2]
[319712572,1710937850756,-500.0,0.00032126,2]
[319712573,1710937850766,-500.0,0.00032126,2]
[319712574,1710937850775,-500.0,0.00032126,2]
[319712575,1710937850785,-500.0,0.00032126,2]
[319712576,1710937850795,-2371.34,0.00032126,2]
[319712577,1710937850806,-500.0,0.00032126,2]
[319712578,1710937850816,-755.01,0.00032126,2]
[319712579,1710937850826,-500.0,0.00032126,2]
[319712580,1710937850835,-500.0,0.00032126,2]
[319712581,1710937850845,-500.0,0.00032126,2]
[319712582,1710937850855,-500.0,0.00032126,2]
[319712583,1710937850864,-500.0,0.00032126,2]
[319712584,1710937850873,-500.0,0.00032126,2]
[319712585,1710937850883,-500.0,0.00032126,2]
[319712586,1710937850892,-510.19,0.00032126,2]
[319712587,1710937850901,-500.0,0.00032126,2]
[319712588,1710937850911,-500.0,0.00032126,2]
[319712589,1710937850920,-370.95438446,0.00032126,2]
[319712590,1710937850931,-500.0,0.00032126,2]
[319712591,1710937850943,-500.0,0.00032126,2]
[319712592,1710937850952,-500.0,0.00032126,2]
[319712593,1710937850962,-500.0,0.00032126,2]
[319712594,1710937850972,-500.0,0.00032126,2]
[319712595,1710937850982,-500.0,0.00032126,2]
[319712596,1710937850992,-500.0,0.00032126,2]
[319712597,1710937851001,-500.0,0.00032126,2]
[319712598,1710937851011,-500.0,0.00032126,2]
[319712599,1710937851021,-586.39,0.00032126,2]
[319712600,1710937851031,-500.0,0.00032126,2]
[319712601,1710937851041,-500.0,0.00032126,2]
[319712602,1710937851050,-500.0,0.00032126,2]
[319712603,1710937851061,-500.0,0.00032126,2]
[319712604,1710937851070,-500.0,0.00032126,2]
[319712605,1710937851079,-500.0,0.00032126,2]
[319712606,1710937851089,-504.4695046,0.00032126,2]
[319712607,1710937851098,-569.01,0.00032126,2]
[319712608,1710937851181,-289.00277395,0.00032126,2]
[319712609,1710937851205,-500.0,0.00032126,2]
[319712610,1710937851215,-1366.38,0.00032126,2]
[319712611,1710937851225,-639.67,0.00032126,2]
[319712612,1710937851234,-500.0,0.00032126,2]
[319712613,1710937851244,-500.0,0.00032126,2]
[319712614,1710937851254,-500.0,0.00032126,2]
[319712615,1710937851264,-500.0,0.00032126,2]
[319712616,1710937851274,-500.0,0.00032126,2]
[319712617,1710937851284,-501.4255614,0.00032126,2]
[319712618,1710937851294,-932.48,0.00032126,2]
[319712619,1710937851305,-770.91,0.00032126,2]
[319712620,1710937851315,-500.0,0.00032126,2]
[319712621,1710937851324,-409.7,0.00032126,5]
[319712622,1710937851334,-500.0,0.00032126,2]
[319712623,1710937851344,-500.0,0.00032126,2]
[319712624,1710937851354,-500.0,0.00032126,2]
[319712625,1710937851363,-1000.17,0.00032126,2]
[319712626,1710937851373,-500.0,0.00032126,2]
[319712627,1710937851382,-512.27221931,0.00032126,2]
[319712628,1710937851391,-500.0,0.00032126,2]
[319712629,1710937851401,-646.17,0.00032126,2]
[319712630,1710937851411,-500.0,0.00032126,2]
[319712631,1710937851422,-500.0,0.00032126,2]
[319712632,1710937851431,-500.0,0.00032126,2]
[319712633,1710937851440,-453.63743376,0.00032126,2]
[319712634,1710937851450,-806.28,0.00032126,2]
[319712635,1710937851460,-500.0,0.00032126,2]
[319712636,1710937851470,-500.0,0.00032126,2]
[319712637,1710937851480,-500.0,0.00032126,2]
[319712638,1710937851490,-500.0,0.00032126,2]
[319712639,1710937851499,-553.88,0.00032126,2]
[319712640,1710937851509,-500.0,0.00032126,2]
[319712641,1710937851518,-166.725207,0.00032145,2]
[319712642,1710937851528,-150.5,0.00032147,35]
[319712643,1710937851538,-150.5,0.00032147,35]
[319712644,1710937851547,-150.5,0.00032157,35]
[319712645,1710937851558,-150.5,0.00032157,35]
[319712646,1710937851567,-150.5,0.00032167,35]
[319712647,1710937851576,-150.5,0.00032167,35]
[319712648,1710937851585,-192.05055472,0.00032168,7]
[319712649,1710937851595,-285.96147808,0.00032168,4]
[319712650,1710937851605,-263.14018079,0.00032168,7]
[319712651,1710937851616,-166.24095408,0.00032169,4]
[319712652,1710937851626,-886.90320547,0.00032169,4]
[319712653,1710937851636,-1067.73401972,0.0003217,4]
[319712654,1710937851646,-205.03177245,0.00032171,4]
[319712655,1710937851656,-233.80383564,0.00032172,4]
[319712656,1710937851666,-809.36349909,0.00032172,120]
[319712657,1710937851675,-201.2320405,0.00032221,2]
[319712658,1710937851684,-500.0,0.00032227,2]
[319712659,1710937851694,-402.464081,0.00032227,2]
[319712660,1710937851703,-201.2320405,0.00032227,2]
[319712661,1710937851712,-153.0,0.00032253,2]
[319712662,1710937851721,-153.0,0.00032253,2]
[319712663,1710937851731,-153.0,0.00032253,2]
[319712664,1710937851740,-153.0,0.00032253,2]
[319712665,1710937851751,-500.0,0.00032279,2]
[319712666,1710937851761,-381.8787319,0.00032282,4]
[319712667,1710937851771,-180.34814147,0.00032282,4]
[319712668,1710937851780,-500.0,0.00032289,2]
[319712669,1710937851790,-500.0,0.00032289,2]
[319712670,1710937851799,-558.06,0.0003229,2]
[319712671,1710937851810,-500.0,0.0003229,2]
[319712672,1710937851820,-3314.0,0.0003229,2]
[319712673,1710937851829,-3141.67,0.0003229,2]
[319712674,1710937851838,-984.85,0.0003229,2]
[319712675,1710937851848,-500.0,0.0003229,2]
[319712676,1710937851858,-39210.67,0.0003229,2]
[319712677,1710937851867,-2501.83,0.0003229,2]
[319712678,1710937851876,-235.36614738,0.00032291,2]
[319712679,1710937851886,-153.0,0.00032315,2]
[319712680,1710937851895,-2000.0,0.00032354,2]
[319712681,1710937851904,-632.05010896,0.00032357,2]
[319712682,1710937851913,-3757.41,0.00032389,2]
[319712683,1710937851922,-500.0,0.00032389,2]
[319712684,1710937851932,-2245.36,0.00032389,2]
[319712685,1710937851941,-1980.19,0.00032389,2]
[319712686,1710937851950,-3202.49,0.00032389,2]
[319712687,1710937851963,-12350.32,0.00032389,2]
[319712688,1710937851972,-1724.39,0.00032389,2]
[319712689,1710937851982,-565.02,0.00032389,2]
[319712690,1710937851991,-500.0,0.00032389,2]
[319712691,1710937852001,-5209.66,0.00032389,2]
[319712692,1710937852010,-500.0,0.00032389,2]
[319712693,1710937852020,-2061.43,0.00032389,2]
[319712694,1710937852029,-500.0,0.00032389,2]
[319712695,1710937852039,-500.0,0.00032389,2]
[319712696,1710937852049,-500.0,0.00032389,2]
[319712697,1710937852060,-500.0,0.00032389,2]
[319712698,1710937852070,-896.93,0.00032389,2]
[319712699,1710937852079,-500.0,0.00032389,2]
[319712700,1710937852088,-500.0,0.00032389,2]
[319712701,1710937852097,-34704.47,0.00032389,2]
[319712702,1710937852106,-6885.87,0.00032389,2]
[319712703,1710937852115,-500.0,0.00032389,2]
[319712704,1710937852124,-400.0,0.0003239,2]
[319712705,1710937852134,-155.55638323,0.0003239,4]
[319712706,1710937852143,-500.0,0.00032391,2]
[319712707,1710937852152,-500.0,0.00032391,2]
[319712708,1710937852161,-286.11302125,0.00032391,2]
[319712709,1710937852170,-506.96,0.00032391,2]
[319712710,1710937852179,-463.18,0.00032391,2]
[319712711,1710937852189,-665.5,0.00032391,2]
[319712712,1710937852198,-557.59,0.00032391,2]
[319712713,1710937852208,-604.45,0.00032391,2]
[319712714,1710937852217,-826.7,0.00032391,2]
[319712715,1710937852226,-500.0,0.00032391,2]
[319712716,1710937852235,-979.6,0.00032391,2]
[319712717,1710937852244,-500.0,0.00032391,2]
[319712718,1710937852253,-500.0,0.00032391,2]
[319712719,1710937852262,-1437.52,0.00032391,2]
[319712720,1710937852271,-611.05,0.00032391,2]
[319712721,1710937852280,-500.0,0.00032391,2]
[319712722,1710937852289,-500.0,0.00032391,2]
[319712723,1710937852298,-8325.38,0.00032391,2]
[319712724,1710937852310,-2778.2,0.00032391,2]
[319712725,1710937852319,-500.0,0.00032391,2]
[319712726,1710937852329,-1111.42,0.00032391,2]
[319712727,1710937852338,-500.0,0.00032391,2]
[319712728,1710937852349,-500.0,0.00032391,2]
[319712729,1710937852358,-1155.02,0.00032391,2]
[319712730,1710937852367,-500.0,0.00032391,2]
[319712731,1710937852376,-3076.45,0.00032391,2]
[319712732,1710937852386,-5048.6,0.00032391,2]
[319712733,1710937852396,-500.0,0.00032391,2]
[319712734,1710937852406,-1109.31,0.00032391,2]
[319712735,1710937852415,-500.0,0.00032391,2]
[319712736,1710937852424,-500.0,0.00032391,2]
[319712737,1710937852433,-500.0,0.00032391,2]
[319712738,1710937852442,-599.74,0.00032391,2]
[319712739,1710937852452,-2843.79,0.00032391,2]